fUSD/lending_fUSD_20260629
["ID","MTS","AMOUNT","RATE_DAILY","PERIOD"]
[426689212,1782744671000,-151.0,0.00037408,30]
[426689209,1782744671000,-151.0,0.00037408,30]
[426689203,1782744671000,-160.0,0.00037401,120]
[426689217,1782744671000,-552.655342,0.00037408,30]
[426689214,1782744671000,-151.0,0.00037408,30]
[426689254,1782744672000,-2311.66774214,0.00037408,59]
[426689250,1782744672000,-50000.0,0.00037408,58]
[426689249,1782744672000,-15016.39489766,0.00037408,57]
[426689255,1782744672000,-342.65677232,0.00037408,59]
[426689247,1782744672000,-34254.60284509,0.00037408,57]
[426689246,1782744672000,-664.88078367,0.00037408,56]
[426689248,1782744672000,-729.00225725,0.00037408,57]
[426689252,1782744672000,-436.23,0.00037408,59]
[426689262,1782744672000,-39003.77224528,0.00037408,62]
[426689253,1782744672000,-300.0,0.00033686,2]
[426689256,1782744672000,-500.0,0.00037408,59]
[426689257,1782744672000,-6225.435,0.00037408,59]
[426689258,1782744672000,-16078.05853006,0.00037408,59]
[426689260,1782744672000,-50000.0,0.00037408,60]
[426689261,1782744672000,-50000.0,0.00037408,61]
[426689259,1782744672000,-8773.9922119,0.00037408,59]
[426689251,1782744672000,-15331.95974358,0.00037408,59]
[426689263,1782744703000,-500.0,0.00014496,2]
[426689264,1782744721000,-500.0,0.00014496,2]
[426689274,1782744722000,-238.44895013,0.00014496,2]
[426689275,1782744722000,-500.0,0.00014496,2]
[426689273,1782744722000,-261.55104987,0.00014496,2]
[426689272,1782744722000,-500.0,0.00014496,2]
[426689271,1782744722000,-500.0,0.00014496,2]
[426689267,1782744722000,-500.0,0.00014496,2]
[426689269,1782744722000,-500.0,0.00014496,2]
[426689268,1782744722000,-500.0,0.00014496,2]
[426689266,1782744722000,-213.3515059,0.00014496,2]
[426689265,1782744722000,-286.6484941,0.00014496,2]
[426689270,1782744722000,-500.0,0.00014496,2]
[426689277,1782744722000,-500.0,0.00014496,2]
[426689276,1782744722000,-500.0,0.00014496,2]
[426689281,1782744722000,-236.45360564,0.00014496,2]
[426689278,1782744722000,-500.0,0.00014496,2]
[426689288,1782744722000,-234.9403561,0.00014496,2]
[426689290,1782744722000,-500.0,0.00014496,2]
[426689289,1782744722000,-265.0596439,0.00014496,2]
[426689285,1782744722000,-500.0,0.00014496,2]
[426689287,1782744722000,-500.0,0.00014496,2]
[426689284,1782744722000,-566.56754915,0.00014496,2]
[426689282,1782744722000,-263.54639436,0.00014496,2]
[426689283,1782744722000,-500.0,0.00014496,2]
[426689279,1782744722000,-500.0,0.00014496,2]
[426689280,1782744722000,-500.0,0.00014496,2]
[426689286,1782744722000,-500.0,0.00014496,2]
[426689299,1782744723000,-16.44484548,0.00014496,2]
[426689302,1782744723000,-500.0,0.00014496,2]
[426689300,1782744723000,-483.55515452,0.00014496,2]
[426689298,1782744723000,-500.0,0.00014496,2]
[426689296,1782744723000,-500.0,0.00014496,2]
[426689301,1782744723000,-500.0,0.00014496,2]
[426689295,1782744723000,-500.0,0.00014496,2]
[426689294,1782744723000,-500.0,0.00014496,2]
[426689293,1782744723000,-500.0,0.00014496,2]
[426689291,1782744723000,-41.54228971,0.00014496,2]
[426689297,1782744723000,-500.0,0.00014496,2]
[426689303,1782744723000,-500.0,0.00014496,2]
[426689292,1782744723000,-458.45771029,0.00014496,2]
[426689305,1782744723000,-500.0,0.00014496,2]
[426689316,1782744723000,-500.0,0.00014496,2]
[426689315,1782744723000,-33.75004298,0.00014496,2]
[426689314,1782744723000,-466.24995702,0.00014496,2]
[426689313,1782744723000,-500.0,0.00014496,2]
[426689312,1782744723000,-500.0,0.00014496,2]
[426689304,1782744723000,-500.0,0.00014496,2]
[426689310,1782744723000,-500.0,0.00014496,2]
[426689309,1782744723000,-500.0,0.00014496,2]
[426689307,1782744723000,-8.65259875,0.00014496,2]
[426689308,1782744723000,-500.0,0.00014496,2]
[426689306,1782744723000,-491.34740125,0.00014496,2]
[426689311,1782744723000,-500.0,0.00014496,2]
[426689317,1782744724000,-500.0,0.00014496,2]
[426689319,1782744724000,-500.0,0.00014496,2]
[426689318,1782744724000,-500.0,0.00014496,2]
[426689322,1782744724000,-441.15251279,0.00014496,2]
[426689320,1782744724000,-500.0,0.00014496,2]
[426689321,1782744724000,-500.0,0.00014496,2]
[426689323,1782744757000,-58.84748721,0.00014496,2]
[426689324,1782744810000,-500.0,0.00014495,2]
[426689325,1782744863000,-500.0,0.00014495,2]
[426689326,1782744909000,-500.0,0.00014494,2]
[426689330,1782744962000,-500.0,0.00014494,2]
[426689331,1782745015000,-819.092222,0.0001448,2]
[426689333,1782745079000,200.0,0.000139,5]
[426689342,1782745390000,-500.0,0.00014394,2]
[426689344,1782745443000,-2771.66662495,0.00014205,2]
[426689345,1782745456000,-1543.45509987,0.00014205,2]
[426689346,1782745468000,-1543.45509987,0.00014205,2]
[426689347,1782745480000,-1666.43617531,0.00014205,2]
[426689348,1782745481000,-150.0,0.000148,5]
[426689349,1782745491000,-179.0,0.000148,5]
[426689350,1782745533000,-200.0,0.00014205,2]
[426689351,1782745545000,-279.311,0.00014205,2]
[426689363,1782745599000,-150.23831891,0.00013593,2]
[426689366,1782745611000,-211.96681556,0.00013695,2]
[426689365,1782745611000,-5.12652888,0.00013593,2]
[426689372,1782745639000,300.0,0.000139,5]
[426689373,1782745665000,-20.69412794,0.00013695,2]
[426689375,1782745708000,-500.0,0.00014392,2]
[426689376,1782745708000,-500.0,0.00014392,2]
[426689377,1782745708000,-471.5300499,0.00014392,2]
[426689405,1782745832000,-500.0,0.00014391,2]
[426689394,1782745832000,-228.09413106,0.00014391,2]
[426689393,1782745832000,-271.90586894,0.00014391,2]
[426689395,1782745832000,-287.78439976,0.00014391,2]
[426689397,1782745832000,-500.0,0.00014391,2]
[426689396,1782745832000,-212.21560024,0.00014391,2]
[426689399,1782745832000,-500.0,0.00014391,2]
[426689398,1782745832000,-500.0,0.00014391,2]
[426689400,1782745832000,-500.0,0.00014391,2]
[426689401,1782745832000,-532.27971001,0.00014391,2]
[426689410,1782745832000,-500.0,0.00014391,2]
[426689402,1782745832000,-500.0,0.00014391,2]
[426689403,1782745832000,-500.0,0.00014391,2]
[426689404,1782745832000,-500.0,0.00014391,2]
[426689407,1782745832000,-500.0,0.00014391,2]
[426689409,1782745832000,-500.0,0.00014391,2]
[426689408,1782745832000,-500.0,0.00014391,2]
[426689411,1782745832000,-500.0,0.00014391,2]
[426689414,1782745832000,-307.80030516,0.00014391,2]
[426689412,1782745832000,-500.0,0.00014391,2]
[426689413,1782745832000,-500.0,0.00014391,2]
[426689406,1782745832000,-500.0,0.00014391,2]
[426689448,1782745838000,-500.0,0.00014394,2]
[426689452,1782745838000,-2832.27139099,0.00014395,2]
[426689455,1782745838000,-464.8507741,0.00014395,2]
[426689453,1782745838000,-9499.37136743,0.00014395,2]
[426689454,1782745838000,-2730.0617791,0.00014395,2]
[426689466,1782745838000,-182.0,0.00014826,2]
[426689458,1782745838000,-827292.0291881,0.00014495,2]
[426689456,1782745838000,-3275.23498713,0.00014395,2]
[426689459,1782745838000,-18324.3672003,0.00014495,2]
[426689451,1782745838000,-612.14649432,0.00014394,2]
[426689460,1782745838000,-3934.91557074,0.00014496,2]
[426689462,1782745838000,-150.0,0.00014538,2]
[426689457,1782745838000,-10282.89616519,0.00014395,2]
[426689450,1782745838000,-500.0,0.00014394,2]
[426689442,1782745838000,-190.33640474,0.00014394,2]
[426689447,1782745838000,-274.99853934,0.00014394,2]
[426689443,1782745838000,-500.0,0.00014394,2]
[426689444,1782745838000,-226.43592681,0.00014394,2]
[426689441,1782745838000,-62.57556769,0.00014394,2]
[426689445,1782745838000,-453.79833844,0.00014394,2]
[426689440,1782745838000,-500.0,0.00014394,2]
[426689439,1782745838000,-150.0,0.00014394,2]
[426689438,1782745838000,-500.0,0.00014391,2]
[426689437,1782745838000,-500.0,0.00014391,2]
[426689435,1782745838000,-192.19969484,0.00014391,2]
[426689446,1782745838000,-46.20166156,0.00014394,2]
[426689436,1782745838000,-500.0,0.00014391,2]
[426689461,1782745838000,-473.07614073,0.00014496,2]
[426689449,1782745838000,-500.0,0.00014394,2]
[426689464,1782745838000,-150.0,0.00014682,2]
[426689472,1782745838000,-399.69146786,0.000149,2]
[426689463,1782745838000,-871.02,0.00014551,2]
[426689497,1782745838000,-436.91,0.00016329,2]
[426689465,1782745838000,-700.0,0.000148,5]
[426689496,1782745838000,-702.694,0.00016213,2]
[426689495,1782745838000,-175.94,0.00016114,2]
[426689493,1782745838000,-10282.89616513,0.00015762,2]
[426689486,1782745838000,-919.47,0.000153,2]
[426689489,1782745838000,-217.22,0.000153,2]
[426689485,1782745838000,-200.0,0.00015225,2]
[426689483,1782745838000,-240.4,0.00015112,2]
[426689490,1782745838000,-500.0,0.00015467,3]
[426689491,1782745838000,-175.94,0.00015476,2]
[426689487,1782745838000,-198.36,0.000153,2]
[426689484,1782745838000,-485.96,0.000152,2]
[426689488,1782745838000,-1002.2,0.000153,2]
[426689481,1782745838000,-1439909.14759452,0.00015,2]
[426689494,1782745838000,-1400.0,0.000159,5]
[426689482,1782745838000,-300.0,0.00015,2]
[426689492,1782745838000,-15969.51890776,0.00015762,2]
[426689467,1782745838000,-165.61,0.00014852,2]
[426689468,1782745838000,-150.0,0.00014852,2]
[426689470,1782745838000,-257.48530146,0.000149,2]
[426689473,1782745838000,-504.2741242,0.00014983,2]
[426689474,1782745838000,-1163.58,0.00014985,2]
[426689469,1782745838000,-1000.0,0.000149,5]
[426689480,1782745838000,-172606.02621249,0.00015,2]
[426689471,1782745838000,-1881.489175,0.000149,2]
[426689476,1782745838000,-1833.0,0.00014985,2]
[426689478,1782745838000,-154.01627154,0.0001499,2]
[426689477,1782745838000,-285.43,0.00014985,2]
[426689475,1782745838000,-282.48,0.00014985,2]
[426689536,1782745839000,-5731.92,0.00019339,2]
[426689537,1782745839000,-2632.32,0.00019339,2]
[426689534,1782745839000,-150.99,0.00019339,2]
[426689539,1782745839000,-485.96,0.000196,2]
[426689533,1782745839000,-515.88,0.00019339,2]
[426689531,1782745839000,-262.14,0.00018778,2]
[426689529,1782745839000,-15969.51890776,0.00018497,2]
[426689535,1782745839000,-4297.2,0.00019339,2]
[426689522,1782745839000,-10282.89616513,0.00017129,2]
[426689532,1782745839000,-502.0,0.00018938,3]
[426689530,1782745839000,-10282.89616513,0.00018497,2]
[426689550,1782745839000,-159.89118465,0.00020547,2]
[426689547,1782745839000,-397.0,0.0002,2]
[426689544,1782745839000,-170.0,0.0002,2]
[426689549,1782745839000,-216.59,0.00020532,2]
[426689546,1782745839000,-224.0,0.0002,2]
[426689543,1782745839000,-199.0,0.0002,2]
[426689542,1782745839000,-502.0,0.00019908,4]
[426689545,1782745839000,-510.0,0.0002,2]
[426689541,1782745839000,-15969.51890776,0.00019864,2]
[426689540,1782745839000,-893.39,0.00019863,2]
[426689548,1782745839000,-871.02,0.00020008,2]
[426689552,1782745839000,-502.0,0.00020877,5]
[426689562,1782745839000,-166.66,0.00021684,2]
[426689523,1782745839000,-175.94,0.00017391,2]
[426689538,1782745839000,-233.10994737,0.00019394,2]
[426689525,1782745839000,-2832.27139098,0.00017539,2]
[426689511,1782745839000,-500.0,0.00016487,2]
[426689524,1782745839000,-150.0,0.00017526,2]
[426689554,1782745839000,-170.0,0.00021,2]
[426689498,1782745839000,-871.02,0.0001637,2]
[426689502,1782745839000,-500.0,0.00016438,2]
[426689504,1782745839000,-500.0,0.00016438,2]
[426689499,1782745839000,-500.0,0.00016438,2]
[426689500,1782745839000,-500.0,0.00016438,2]
[426689503,1782745839000,-500.0,0.00016438,2]
[426689501,1782745839000,-500.0,0.00016438,2]
[426689506,1782745839000,-500.0,0.00016438,2]
[426689516,1782745839000,-500.0,0.00016761,2]
[426689508,1782745839000,-499.99999999,0.00016438,2]
[426689507,1782745839000,-500.0,0.00016438,2]
[426689527,1782745839000,-175.94,0.0001803,2]
[426689509,1782745839000,-500.0,0.00016487,2]
[426689510,1782745839000,-500.0,0.00016487,2]
[426689512,1782745839000,-500.0,0.00016487,2]
[426689514,1782745839000,-500.0,0.00016761,2]
[426689515,1782745839000,-500.0,0.00016761,2]
[426689513,1782745839000,-175.94,0.00016753,2]
[426689517,1782745839000,-940.0,0.00016761,2]
[426689519,1782745839000,-2000.0,0.00016822,2]
[426689518,1782745839000,-33336.8515,0.00016822,2]
[426689521,1782745839000,-15969.51890776,0.00017129,2]
[426689528,1782745839000,-871.02,0.00018189,2]
[426689520,1782745839000,-502.0,0.00017,2]
[426689526,1782745839000,-502.0,0.00017969,2]
[426689505,1782745839000,-409.61597801,0.00016438,2]
[426689553,1782745839000,-199.0,0.00021,2]
[426689591,1782745839000,-166.66,0.00023472,30]
[426689555,1782745839000,-510.0,0.00021,2]
[426689588,1782745839000,-150.0,0.00023014,2]
[426689587,1782745839000,-224.0,0.00023,2]
[426689589,1782745839000,-166.66,0.00023025,30]
[426689593,1782745839000,-158.03445984,0.00023778,2]
[426689592,1782745839000,-174.76,0.00023676,2]
[426689590,1782745839000,-400.0,0.00023253,2]
[426689596,1782745839000,-172.61515996,0.00023778,2]
[426689594,1782745839000,-165.71890471,0.00023778,2]
[426689598,1782745839000,-160.02467711,0.00023778,2]
[426689597,1782745839000,-156.32319072,0.00023778,2]
[426689595,1782745839000,-181.13068072,0.00023778,2]
[426689600,1782745839000,-502.0,0.00023785,8]
[426689581,1782745839000,-189.05,0.00022793,2]
[426689610,1782745839000,-150.0,0.00024115,7]
[426689608,1782745839000,-394.0,0.00024,7]
[426689602,1782745839000,-176.76167424,0.00023786,2]
[426689599,1782745839000,-167.32841348,0.00023778,2]
[426689601,1782745839000,-220.669308,0.00023786,2]
[426689607,1782745839000,-224.0,0.00024,2]
[426689605,1782745839000,-170.0,0.00024,2]
[426689604,1782745839000,-199.0,0.00024,2]
[426689609,1782745839000,-151.14861335,0.00024115,7]
[426689606,1782745839000,-510.0,0.00024,2]
[426689611,1782745839000,-150.0,0.00024115,7]
[426689613,1782745839000,-151.14744993,0.00024115,7]
[426689551,1782745839000,-2832.27139098,0.00020682,2]
[426689603,1782745839000,-2832.27139098,0.00023826,2]
[426689584,1782745839000,-199.0,0.00023,2]
[426689612,1782745839000,-150.0,0.00024115,7]
[426689582,1782745839000,-263.24,0.00022806,2]
[426689580,1782745839000,-485.96,0.000227,7]
[426689561,1782745839000,-500.0,0.00021339,2]
[426689558,1782745839000,-15969.51890776,0.00021231,2]
[426689556,1782745839000,-224.0,0.00021,2]
[426689557,1782745839000,-152.82,0.00021113,2]
[426689559,1782745839000,-166.66,0.00021237,2]
[426689574,1782745839000,-166.66,0.00022131,30]
[426689563,1782745839000,-29999.99,0.00021757,2]
[426689564,1782745839000,-871.02,0.00021826,2]
[426689565,1782745839000,-502.0,0.00021846,6]
[426689569,1782745839000,-600.0,0.00021918,8]
[426689568,1782745839000,-600.0,0.00021918,8]
[426689570,1782745839000,-199.0,0.00022,2]
[426689560,1782745839000,-191.85515459,0.00021264,2]
[426689566,1782745839000,-5000.0,0.00021918,2]
[426689567,1782745839000,-150.0,0.00021918,2]
[426689579,1782745839000,-152.82,0.00022622,2]
[426689575,1782745839000,-257.48530144,0.000224,2]
[426689577,1782745839000,-166.66,0.00022578,30]
[426689586,1782745839000,-510.0,0.00023,2]
[426689578,1782745839000,-15969.51890776,0.00022598,2]
[426689583,1782745839000,-502.0,0.00022815,7]
[426689576,1782745839000,-173.09,0.00022559,2]
[426689572,1782745839000,-510.0,0.00022,2]
[426689573,1782745839000,-224.0,0.00022,2]
[426689571,1782745839000,-170.0,0.00022,2]
[426689585,1782745839000,-170.0,0.00023,2]
[426689653,1782745840000,-1000.0,0.00024944,2]
[426689652,1782745840000,-150.0,0.00024881,7]
[426689651,1782745840000,-150.0,0.00024881,7]
[426689648,1782745840000,-150.0,0.00024804,7]
[426689646,1782745840000,-150.0,0.00024785,7]
[426689650,1782745840000,-478.52217769,0.00024815,7]
[426689649,1782745840000,-181.32599804,0.00024815,7]
[426689647,1782745840000,-150.0,0.00024785,7]
[426689645,1782745840000,-502.0,0.00024754,9]
[426689654,1782745840000,-150.0,0.00024957,7]
[426689656,1782745840000,-151.09934801,0.00024967,2]
[426689664,1782745840000,-528.0,0.00025,2]
[426689616,1782745840000,-150.0,0.00024115,7]
[426689667,1782745840000,-150.0,0.00025008,7]
[426689658,1782745840000,-276.61,0.00024993,30]
[426689659,1782745840000,-78302.87996725,0.00025,60]
[426689661,1782745840000,-28930.08024509,0.00025,2]
[426689663,1782745840000,-172.0,0.00025,2]
[426689662,1782745840000,-208.0,0.00025,2]
[426689665,1782745840000,-238.0,0.00025,2]
[426689660,1782745840000,-631.41741655,0.00025,5]
[426689669,1782745840000,-150.0,0.00025034,7]
[426689670,1782745840000,-316.06891968,0.0002504,2]
[426689638,1782745840000,-2000.0,0.00024606,7]
[426689666,1782745840000,-216.58458871,0.00025,7]
[426689644,1782745840000,-150.0,0.00024728,7]
[426689626,1782745840000,-13798.21,0.00024174,2]
[426689639,1782745840000,-150.0,0.00024651,7]
[426689614,1782745840000,-150.0,0.00024115,7]
[426689615,1782745840000,-150.0,0.00024115,7]
[426689618,1782745840000,-150.0,0.00024115,7]
[426689617,1782745840000,-283.83603472,0.00024115,7]
[426689620,1782745840000,-150.0,0.00024115,7]
[426689619,1782745840000,-151.13233997,0.00024115,7]
[426689621,1782745840000,-150.0,0.00024115,7]
[426689628,1782745840000,-150.0,0.00024268,7]
[426689632,1782745840000,-150.0,0.00024421,7]
[426689625,1782745840000,-460.04,0.00024174,2]
[426689633,1782745840000,-150.0,0.0002445,7]
[426689624,1782745840000,-1510.23,0.00024174,2]
[426689623,1782745840000,-150.0,0.00024164,2]
[426689629,1782745840000,-150.0,0.00024338,7]
[426689627,1782745840000,-150.0,0.00024192,7]
[426689631,1782745840000,-150.0,0.00024413,7]
[426689630,1782745840000,-150.0,0.00024345,7]
[426689622,1782745840000,-152.82,0.0002413,2]
[426689637,1782745840000,-150.0,0.00024574,7]
[426689634,1782745840000,-150.0,0.00024498,7]
[426689635,1782745840000,-150.0,0.00024498,7]
[426689677,1782745840000,-312.64638144,0.00025048,2]
[426689640,1782745840000,-150.0,0.00024651,7]
[426689641,1782745840000,-177.33,0.00024658,2]
[426689636,1782745840000,-150.0,0.00024562,7]
[426689642,1782745840000,-181.36,0.00024658,2]
[426689679,1782745840000,-353.52334847,0.00025048,2]
[426689643,1782745840000,-150.0,0.00024711,7]
[426689674,1782745840000,-320.04935421,0.0002504,2]
[426689702,1782745840000,-151.09934801,0.00025622,2]
[426689705,1782745840000,-150.0,0.00025646,7]
[426689706,1782745840000,-150.0,0.00025678,7]
[426689708,1782745840000,-150.0,0.00025723,7]
[426689709,1782745840000,-152.0,0.00025723,3]
[426689710,1782745840000,-502.0,0.00025723,10]
[426689707,1782745840000,-150.0,0.00025723,7]
[426689712,1782745840000,-150.0,0.0002579,7]
[426689711,1782745840000,-169.67,0.0002574,7]
[426689714,1782745840000,-150.0,0.00025799,7]
[426689716,1782745840000,-500.0,0.00025873,2]
[426689718,1782745840000,-292.59454629,0.00025882,2]
[426689717,1782745840000,-150.0,0.00025876,7]
[426689719,1782745840000,-280.79250716,0.00025882,2]
[426689725,1782745840000,-497.15671412,0.00025882,2]
[426689721,1782745840000,-278.14556755,0.00025882,2]
[426689724,1782745840000,-217.79041123,0.00025882,2]
[426689715,1782745840000,-1554935.78946263,0.000258,2]
[426689720,1782745840000,-272.60326065,0.00025882,2]
[426689723,1782745840000,-474.10337952,0.00025882,2]
[426689722,1782745840000,-211.49669297,0.00025882,2]
[426689727,1782745840000,-206.70039259,0.00025882,2]
[426689728,1782745840000,-277.37588827,0.00025882,2]
[426689726,1782745840000,-291.4590324,0.00025882,2]
[426689676,1782745840000,-169.60007796,0.0002504,2]
[426689713,1782745840000,-151.0,0.00025797,7]
[426689704,1782745840000,-150.0,0.00025646,7]
[426689684,1782745840000,-150.0,0.00025187,7]
[426689696,1782745840000,-150.0,0.00025455,7]
[426689703,1782745840000,-152.82,0.00025638,2]
[426689675,1782745840000,-334.65682696,0.0002504,2]
[426689668,1782745840000,-150.0,0.00025008,7]
[426689678,1782745840000,-441.338616,0.00025048,2]
[426689672,1782745840000,-362.26136144,0.0002504,2]
[426689673,1782745840000,-345.23031991,0.0002504,2]
[426689681,1782745840000,-150.0,0.0002511,7]
[426689680,1782745840000,-209.43339595,0.00025048,2]
[426689691,1782745840000,-150.0,0.0002534,7]
[426689682,1782745840000,-150.0,0.0002512,7]
[426689683,1782745840000,-150.0,0.00025187,7]
[426689685,1782745840000,-485.96,0.000252,7]
[426689689,1782745840000,-151.09934801,0.00025294,2]
[426689671,1782745840000,-331.43780941,0.0002504,2]
[426689690,1782745840000,-150.0,0.00025306,7]
[426689687,1782745840000,-150.0,0.00025263,7]
[426689701,1782745840000,-150.0,0.00025604,7]
[426689697,1782745840000,-150.0,0.00025455,7]
[426689698,1782745840000,-150.0,0.00025493,7]
[426689699,1782745840000,-326.0,0.0002552,2]
[426689700,1782745840000,-150.0,0.0002557,7]
[426689694,1782745840000,-150.0,0.00025417,7]
[426689695,1782745840000,-150.0,0.00025455,7]
[426689692,1782745840000,-150.0,0.00025373,2]
[426689688,1782745840000,-150.0,0.00025263,7]
[426689686,1782745840000,-150.0,0.00025232,7]
[426689693,1782745840000,-388.24831335,0.00025397,2]
[426689773,1782745841000,-399.69146784,0.00026105,2]
[426689767,1782745841000,-150.0,0.00025952,7]
[426689770,1782745841000,-150.0,0.00026029,7]
[426689769,1782745841000,-150.0,0.00026029,7]
[426689771,1782745841000,-352.64707502,0.00026105,2]
[426689761,1782745841000,-269.4912406,0.0002589,2]
[426689774,1782745841000,-150.0,0.00026106,7]
[426689762,1782745841000,-287.27261223,0.0002589,2]
[426689772,1782745841000,-1881.48917498,0.00026105,2]
[426689763,1782745841000,-1800.0,0.000259,9]
[426689768,1782745841000,-9533.36905003,0.00026,5]
[426689775,1782745841000,-150.0,0.00026125,7]
[426689766,1782745841000,-151.09934801,0.0002595,2]
[426689782,1782745841000,-150.0,0.00026259,7]
[426689776,1782745841000,-150.0,0.00026125,7]
[426689779,1782745841000,-152.0,0.00026187,5]
[426689778,1782745841000,-150.0,0.00026182,7]
[426689781,1782745841000,-150.0,0.00026259,7]
[426689780,1782745841000,-150.0,0.00026199,7]
[426689783,1782745841000,-151.09934801,0.00026278,2]
[426689777,1782745841000,-498.39592974,0.00026147,2]
[426689785,1782745841000,-500.0,0.00026334,2]
[426689788,1782745841000,-500.0,0.00026334,2]
[426689786,1782745841000,-500.0,0.00026334,2]
[426689787,1782745841000,-500.0,0.00026334,2]
[426689756,1782745841000,-229.26820542,0.0002589,2]
[426689765,1782745841000,-150.0,0.00025901,7]
[426689758,1782745841000,-220.74153862,0.0002589,2]
[426689742,1782745841000,-154.36578969,0.0002589,2]
[426689759,1782745841000,-213.52149194,0.0002589,2]
[426689735,1782745841000,-275.94483667,0.00025882,2]
[426689736,1782745841000,-501.98524044,0.00025882,2]
[426689737,1782745841000,-339.20015592,0.00025882,2]
[426689729,1782745841000,-286.08830538,0.00025882,2]
[426689730,1782745841000,-543.39204215,0.00025882,2]
[426689731,1782745841000,-517.84547987,0.00025882,2]
[426689734,1782745841000,-249.02570055,0.00025882,2]
[426689733,1782745841000,-272.87022352,0.00025882,2]
[426689732,1782745841000,-480.07403132,0.00025882,2]
[426689738,1782745841000,-294.55599867,0.00025882,2]
[426689743,1782745841000,-468.96957216,0.0002589,2]
[426689741,1782745841000,-159.9602403,0.0002589,2]
[426689739,1782745841000,-283.72859771,0.00025882,2]
[426689740,1782745841000,-187.22844565,0.00025882,2]
[426689744,1782745841000,-280.78421499,0.0002589,2]
[426689784,1782745841000,-173.09,0.00026319,120]
[426689745,1782745841000,-276.03546199,0.0002589,2]
[426689747,1782745841000,-268.49686425,0.0002589,2]
[426689746,1782745841000,-204.98046053,0.0002589,2]
[426689748,1782745841000,-662.007924,0.0002589,2]
[426689750,1782745841000,-183.70029703,0.0002589,2]
[426689754,1782745841000,-418.86679189,0.0002589,2]
[426689749,1782745841000,-201.68349926,0.0002589,2]
[426689753,1782745841000,-298.60188568,0.0002589,2]
[426689752,1782745841000,-530.28502271,0.0002589,2]
[426689755,1782745841000,-253.21947136,0.0002589,2]
[426689760,1782745841000,-297.01919261,0.0002589,2]
[426689757,1782745841000,-202.49195897,0.0002589,2]
[426689801,1782745841000,-422.99338594,0.00026443,2]
[426689764,1782745841000,-150.0,0.00025901,7]
[426689800,1782745841000,-556.29113511,0.00026443,2]
[426689822,1782745841000,-498.05140109,0.00026443,2]
[426689817,1782745841000,-182.19533271,0.00026443,2]
[426689823,1782745841000,-551.88967334,0.00026443,2]
[426689820,1782745841000,-640.09870843,0.00026443,2]
[426689824,1782745841000,-669.31365392,0.00026443,2]
[426689827,1782745841000,-384.57520283,0.00026443,2]
[426689826,1782745841000,-310.99386043,0.00026443,2]
[426689830,1782745841000,-589.11199733,0.00026443,2]
[426689832,1782745841000,-167.48709581,0.00026443,2]
[426689840,1782745841000,-323.84535204,0.00026451,2]
[426689841,1782745841000,-249.93277666,0.00026451,2]
[426689838,1782745841000,-174.19192964,0.0002645,2]
[426689837,1782745841000,-426.00662091,0.0002645,2]
[426689825,1782745841000,-508.80023388,0.00026443,2]
[426689835,1782745841000,-200.06265244,0.00026443,2]
[426689842,1782745841000,-224.30944017,0.00026451,2]
[426689834,1782745841000,-319.96830724,0.00026443,2]
[426689839,1782745841000,-319.92048059,0.00026451,2]
[426689831,1782745841000,-269.69595104,0.00026443,2]
[426689833,1782745841000,-567.45719543,0.00026443,2]